fUST/lending_fUST_20260329
["ID","MTS","AMOUNT","RATE_DAILY","PERIOD"]
[418991113,1774713691076,10000.0,5e-05,2]
[418991171,1774713764851,10000.0,5e-05,2]
[418991172,1774713773547,10000.0,5e-05,2]
[418991173,1774713781375,10000.0,5e-05,2]
[418991174,1774713791097,10000.0,5e-05,2]
[418991175,1774713799008,10000.0,5e-05,2]
[418991256,1774714232489,-443.5378699,5.423e-05,2]
[418991258,1774714232500,-537.252,5.423e-05,2]
[418991265,1774714232555,-880.75,5.423e-05,2]
[418991267,1774714232567,-516.8,5.423e-05,2]
[418991269,1774714232578,-814.89579,5.423e-05,2]
[418991271,1774714232590,-695.792,5.423e-05,2]
[418991351,1774714238850,-1110.9723401,5.423e-05,2]
[418991352,1774714238860,-418.0,5.478e-05,2]
[418991353,1774714238869,-767.18800519,5.479e-05,2]
[418991354,1774714238880,-4136.17019957,5.479e-05,2]
[418991355,1774714238892,-5096.64179524,5.479e-05,2]
[418991356,1774714238902,-300.0,5.588e-05,2]
[418991357,1774714238912,-300.0,5.588e-05,2]
[418991358,1774714238921,-300.0,5.588e-05,2]
[418991359,1774714238930,-2344.13343566,7.6e-05,2]
[418991360,1774714238939,-289.0,9.29e-05,2]
[418991361,1774714238948,-300.0,9.29e-05,2]
[418991362,1774714238957,-683.54199484,9.365e-05,2]
[418991363,1774714238966,-1289.14480051,9.465e-05,2]
[418991364,1774714238975,-2177.02970955,9.665e-05,2]
[418991365,1774714238984,-1131.27507064,9.673e-05,2]
[418991366,1774714238993,-2968.81126751,0.00012501,2]
[418991367,1774714239002,-451.15579302,0.00013059,2]
[418991368,1774714239011,-1000.0,0.00013699,2]
[418991369,1774714239020,-3105.95321753,0.00013751,2]
[418991370,1774714239030,-3364.70204656,0.00015001,7]
[418991371,1774714239039,-187.09970453,0.00015998,2]
[418991372,1774714239048,-500.0,0.00015998,2]
[418991373,1774714239057,-500.0,0.00015998,2]
[418991374,1774714239066,-409.10347442,0.00015998,2]
[418991375,1774714239076,-513.04831096,0.00015998,2]
[418991376,1774714239085,-500.07150662,0.00015998,2]
[418991377,1774714239094,-500.0,0.0001625,2]
[418991378,1774714239103,-500.0,0.0001625,2]
[418991379,1774714239113,-500.0,0.0001625,2]
[418991380,1774714239122,-500.0,0.0001625,2]
[418991381,1774714239131,-500.0,0.0001625,2]
[418991382,1774714239141,-542.1358213,0.0001625,2]
[418991383,1774714239150,-500.0,0.0001625,2]
[418991384,1774714239159,-500.0,0.0001625,2]
[418991385,1774714239168,-500.0,0.0001625,2]
[418991386,1774714239178,-417.91829091,0.0001625,2]
[418991387,1774714239187,-500.0,0.0001625,2]
[418991388,1774714239196,-500.0,0.0001625,2]
[418991389,1774714239206,-500.0,0.0001625,2]
[418991390,1774714239215,-500.0,0.0001625,2]
[418991391,1774714239224,-500.0,0.0001625,2]
[418991392,1774714239233,-500.0,0.0001625,2]
[418991393,1774714239242,-500.0,0.0001625,2]
[418991394,1774714239251,-500.0,0.0001625,2]
[418991395,1774714239261,-500.0,0.0001625,2]
[418991396,1774714239270,-500.0,0.0001625,2]
[418991397,1774714239279,-500.0,0.0001625,2]
[418991398,1774714239289,-500.0,0.0001625,2]
[418991399,1774714239298,-500.0,0.0001625,2]
[418991400,1774714239307,-500.0,0.0001625,2]
[418991401,1774714239317,-500.0,0.0001625,2]
[418991402,1774714239329,-500.0,0.0001625,2]
[418991403,1774714239339,-500.0,0.0001625,2]
[418991404,1774714239350,-500.0,0.0001625,2]
[418991405,1774714239361,-500.0,0.0001625,2]
[418991406,1774714239371,-500.0,0.0001625,2]
[418991407,1774714239383,-500.0,0.0001625,2]
[418991408,1774714239392,-500.0,0.0001625,2]
[418991409,1774714239402,-500.0,0.0001625,2]
[418991410,1774714239411,-476.87017545,0.0001625,2]
[418991411,1774714239422,-500.0,0.0001625,2]
[418991412,1774714239431,-500.0,0.0001625,2]
[418991413,1774714239440,-500.0,0.0001625,2]
[418991414,1774714239449,-500.0,0.0001625,2]
[418991415,1774714239459,-500.0,0.0001625,2]
[418991416,1774714239468,-500.0,0.0001625,2]
[418991417,1774714239477,-500.0,0.0001625,2]
[418991418,1774714239598,-500.0,0.0001625,2]
[418991419,1774714239609,-500.0,0.0001625,2]
[418991420,1774714239618,-500.0,0.0001625,2]
[418991421,1774714239628,-500.0,0.0001625,2]
[418991422,1774714239638,-500.0,0.0001625,2]
[418991423,1774714239647,-500.0,0.0001625,2]
[418991424,1774714239657,-253.40254518,0.0001625,2]
[418991425,1774714239666,-500.0,0.0001625,2]
[418991426,1774714239676,-500.0,0.0001625,2]
[418991427,1774714239685,-500.0,0.0001625,2]
[418991428,1774714239695,-500.0,0.0001625,2]
[418991429,1774714239704,-500.0,0.0001625,2]
[418991430,1774714239713,-500.0,0.0001625,2]
[418991431,1774714239723,-500.0,0.0001625,2]
[418991432,1774714239732,-500.0,0.0001625,2]
[418991433,1774714239741,-500.0,0.0001625,2]
[418991434,1774714239750,-3711.5560232,0.00016251,12]
[418991435,1774714239759,-500.0,0.00016546,2]
[418991436,1774714239768,-500.0,0.00016546,2]
[418991437,1774714239778,-500.0,0.00016718,2]
[418991438,1774714239787,-500.0,0.00016718,2]
[418991439,1774714239796,-500.0,0.00016718,2]
[418991440,1774714239806,-500.0,0.00016718,2]
[418991441,1774714239815,-500.0,0.00016718,2]
[418991442,1774714239825,-500.0,0.00016992,2]
[418991443,1774714239834,-502.07767365,0.00017266,2]
[418991444,1774714239843,-500.0,0.00017266,2]
[418991445,1774714239853,-502.6993793,0.00017266,2]
[418991446,1774714239863,-500.0,0.00017266,2]
[418991447,1774714239872,-3760.59282562,0.00017501,18]
[418991448,1774714239883,-347.62924464,0.00018357,2]
[418991449,1774714239895,-3345.2715066,0.00018603,2]
[418991450,1774714239904,-500.0,0.00018633,2]
[418991451,1774714239914,-4157.4946769,0.00018751,23]
[418991452,1774714239925,-236.51306985,0.00018912,2]
[418991453,1774714239936,-189.0480591,0.000193,2]
[418991454,1774714239945,-4179.52862865,0.00019402,2]
[418991455,1774714239955,-151.9749387,0.00019402,2]
[418991456,1774714239964,-187.7,0.00019403,2]
[418991457,1774714239973,-189.0480591,0.000195,2]
[418991458,1774714239983,-487.0,0.00019502,2]
[418991459,1774714239992,-487.0,0.00019502,2]
[418991460,1774714240001,-487.0,0.00019502,2]
[418991461,1774714240010,-487.0,0.00019502,2]
[418991462,1774714240020,-487.0,0.00019502,2]
[418991463,1774714240029,-487.0,0.00019502,2]
[418991464,1774714240039,-487.0,0.00019502,2]
[418991465,1774714240048,-487.0,0.00019502,2]
[418991466,1774714240058,-487.0,0.00019502,2]
[418991467,1774714240067,-646.86,0.00019502,2]
[418991468,1774714240077,-500.67352224,0.00019573,2]
[418991469,1774714240087,-500.0,0.00019573,2]
[418991470,1774714240097,-500.79682489,0.00019573,2]
[418991471,1774714240107,-189.0480591,0.000197,2]
[418991472,1774714240116,-550.42063704,0.00019702,2]
[418991473,1774714240125,-500.0,0.00019702,2]
[418991474,1774714240135,-500.0,0.00019702,2]
[418991475,1774714240144,-500.0,0.00019702,2]
[418991476,1774714240153,-483.4473052,0.00019702,2]
[418991477,1774714240163,-21966.58934379,0.00019703,120]
[418991499,1774714244878,-300.0,5.588e-05,2]
[418991500,1774714244888,-300.0,5.588e-05,2]
[418991501,1774714244899,-300.0,5.588e-05,2]
[418991502,1774714244908,-300.0,5.588e-05,2]
[418991503,1774714244918,-300.0,5.588e-05,2]
[418991504,1774714244929,-300.0,5.588e-05,2]
[418991505,1774714244940,-300.0,5.588e-05,2]
[418991506,1774714244950,-300.0,5.588e-05,2]
[418991507,1774714244960,-300.0,5.588e-05,2]
[418991508,1774714244970,-300.0,5.588e-05,2]
[418991509,1774714244979,-300.0,5.588e-05,2]
[418991510,1774714244989,-300.0,5.588e-05,2]
[418991511,1774714244999,-31044.85714259,0.00019703,120]
[418991512,1774714245008,-256.63664918,0.0002,21]
[418991513,1774714245018,-489.695,0.0002032,2]
[418991514,1774714245028,-642.0,0.0002032,2]
[418991515,1774714245038,-205.808476,0.00020713,2]
[418991516,1774714245048,-243.461812,0.00021,2]
[418991517,1774714245058,-205.808476,0.00021585,2]
[418991518,1774714245067,-2578.0,0.00021591,10]
[418991519,1774714245077,-331.23786511,0.00021769,2]
[418991520,1774714245087,-378.17900257,0.00021769,2]
[418991521,1774714245106,-4179.52862862,0.00022176,2]
[418991522,1774714245117,-205.808476,0.00022457,2]
[418991523,1774714245127,-600.0,0.00022619,10]
[418991524,1774714245137,-361.49145878,0.00022915,2]
[418991525,1774714245147,-270.83333333,0.00023,2]
[418991526,1774714245157,-642.0,0.0002332,2]
[418991527,1774714245167,-205.808476,0.00023329,2]
[418991528,1774714245177,-4942.31960168,0.00023751,75]
[418991529,1774714245187,-1000.0,0.0002382,5]
[418991530,1774714245197,-150.87335855,0.00023867,2]
[418991531,1774714245207,-789.0,0.00024,2]
[418991532,1774714245217,-226.39082441,0.00024118,2]
[418991533,1774714245227,-518.90333566,0.00024118,2]
[418991534,1774714245237,-205.808476,0.00024201,2]
[418991535,1774714245246,-500.0,0.0002428,2]
[418991537,1774714245256,-162.5859904,0.00024657,9]
[418991538,1774714245266,-500.0,0.00024657,9]
[418991539,1774714245276,-500.0,0.00024657,9]
[418991540,1774714245286,-500.0,0.00024657,7]
[418991541,1774714245296,-1000.0,0.00024828,2]
[418991542,1774714245306,-500.0,0.00024931,9]
[418991543,1774714245316,-500.0,0.00024931,9]
[418991544,1774714245326,-500.0,0.00024931,7]
[418991545,1774714245336,-4179.52862862,0.0002495,2]
[418991546,1774714245346,-934.02600418,0.0002497,2]
[418991547,1774714245356,-740.75611189,0.00025,2]
[418991548,1774714245366,-1100.0,0.00025,2]
[418991549,1774714245376,-205.808476,0.00025072,2]
[418991550,1774714245386,-3183.88816955,0.0002519,2]
[418991551,1774714245396,-49800.13710241,0.0002519,2]
[418991552,1774714245410,-920.34923436,0.0002519,2]
[418991553,1774714245435,-720.0,0.00024881,10]
[418991554,1774714245445,-9128.56580408,0.0002519,2]
[418991555,1774714245457,-512.77059311,0.0002519,2]
[418991631,1774714247193,-2364.0,0.00023751,10]
[418991633,1774714247204,-162312.39521275,0.0002519,2]
[418991635,1774714247214,-500.0,0.00025205,9]
[418991637,1774714247224,-500.0,0.00025205,9]
[418991639,1774714247233,-500.0,0.00025205,7]
[418991641,1774714247243,-151.0,0.00025227,2]
[418991643,1774714247253,-203.82965844,0.00025266,3]
[418991644,1774714247262,-740.75611189,0.000253,2]
[418991646,1774714247271,-339.16387667,0.000253,2]
[418991648,1774714247281,-1500.0,0.00025376,2]
[418991649,1774714247290,-183393.13647143,0.00025444,2]
[418991650,1774714247335,-9324.2403483,0.00025444,2]
[418991825,1774715432670,-3141.43866366,0.00012727,10]
[418991959,1774715438952,-1858.56133634,0.00012727,10]
[418991960,1774715438962,-606.0,0.00013117,2]
[418991961,1774715438972,-540.63261272,0.00013117,2]
[418991962,1774715438982,-540.63261272,0.00013379,7]
[418991963,1774715438992,-1000.0,0.00013699,2]
[418991964,1774715439001,-540.63261272,0.00013773,14]
[418991965,1774715439011,-1000.0,0.00015774,2]
[418991966,1774715439020,-300.0,0.00016573,2]
[418991967,1774715439029,-300.0,0.00016574,2]
[418991968,1774715439039,-300.0,0.00016574,2]
[418991969,1774715439048,-300.0,0.00016574,2]
[418991970,1774715439058,-300.0,0.00016574,2]
[418991971,1774715439067,-300.0,0.00016574,2]
[418991972,1774715439078,-300.0,0.00016574,2]
[418991973,1774715439087,-300.0,0.00016574,2]
[418991974,1774715439096,-300.0,0.00016574,2]
[418991975,1774715439106,-300.0,0.00016574,2]
[418991976,1774715439115,-300.0,0.00016574,2]
[418991977,1774715439125,-300.0,0.00016574,2]
[418991978,1774715439134,-300.0,0.00016574,2]
[418991979,1774715439144,-300.0,0.00016574,2]
[418991980,1774715439153,-300.0,0.00016574,2]
[418991981,1774715439163,-300.0,0.00016574,2]
[418991982,1774715439172,-600.0,0.00016574,2]
[418991983,1774715439182,-720.0,0.00018231,2]
[418991984,1774715439191,-566.50440274,0.000197,26]
[418991985,1774715439200,-1402.46729672,0.000197,26]
[418991986,1774715439209,-1347.6968233,0.000197,26]
[418991987,1774715439219,-1212.45195495,0.000197,26]
[418991988,1774715439228,-434.16007065,0.00019773,2]
[418991989,1774715439237,-500.28237401,0.00019773,2]
[418991990,1774715439246,-156.09069476,0.00019799,2]
[418991991,1774715439256,-500.0,0.00019799,2]
[418991992,1774715439264,-500.0,0.00019799,2]
[418991993,1774715439274,-500.0,0.00019799,2]
[418991994,1774715439283,-500.0,0.00019799,2]
[418991995,1774715439292,-500.0,0.00019799,2]
[418991996,1774715439301,-500.0,0.00019799,2]
[418991997,1774715439310,-500.0,0.00019799,2]
[418991998,1774715439319,-500.0,0.00019799,2]
[418991999,1774715439328,-500.0,0.00019799,2]
[418992000,1774715439338,-500.0,0.00019799,2]
[418992001,1774715439348,-500.0,0.00019799,2]
[418992002,1774715439357,-500.0,0.00019799,2]
[418992003,1774715439366,-500.0,0.00019799,2]
[418992004,1774715439376,-500.0,0.00019799,2]
[418992005,1774715439385,-500.0,0.00019799,2]
[418992006,1774715439395,-500.0,0.00019799,2]
[418992007,1774715439510,-500.0,0.00019799,2]
[418992008,1774715439522,-500.0,0.00019799,2]
[418992009,1774715439532,-500.0,0.00019799,2]
[418992010,1774715439541,-500.0,0.00019799,2]
[418992011,1774715439551,-500.0,0.00019799,2]
[418992012,1774715439560,-500.0,0.00019799,2]
[418992013,1774715439570,-500.0,0.00019799,2]
[418992014,1774715439579,-565.33844266,0.00019799,2]
[418992015,1774715439588,-500.0,0.00019799,2]
[418992016,1774715439597,-182837.33632621,0.000198,2]
[418992024,1774715441590,-4081.25441584,0.000198,2]
[418992025,1774715441602,-9621.62284973,0.000198,2]
[418992026,1774715441613,-2433.1418704,0.000198,2]
[418992027,1774715441626,-6401.97603204,0.000198,2]
[418992041,1774715444214,-500.0,0.00019799,2]
[418992043,1774715444224,-500.0,0.00019799,2]
[418992044,1774715444234,-500.0,0.00019799,2]
[418992045,1774715444247,-300.0,0.00019799,2]
[418992046,1774715444257,-7317.5359101,0.000198,2]
[418992047,1774715444269,-256043.16799068,0.000198,2]
[418992050,1774715447288,-3827.14179402,0.000198,2]
[418992051,1774715447300,-17771.66466141,0.000198,2]
[418992052,1774715447311,-291.43048804,0.000198,2]
[418992132,1774716635163,-4935.246198,0.00013027,2]
[418992134,1774716635174,-64.753802,0.00013027,2]
[418992136,1774716635184,-607.0,0.00013159,2]
[418992138,1774716635194,-1000.0,0.00013699,2]
[418992140,1774716635204,-1200.0,0.00018164,2]
[418992142,1774716635213,-1609.9046858,0.00018165,2]
[418992144,1774716635222,-446.51832548,0.00019091,2]
[418992146,1774716635232,-500.0,0.00019497,2]
[418992148,1774716635241,-500.0,0.00019497,2]
[418992150,1774716635249,-500.0,0.00019497,2]
[418992152,1774716635259,-334.91730419,0.00019497,2]
[418992154,1774716635267,-388.41311364,0.00019497,2]
[418992155,1774716635277,-303.0282092,0.00019497,2]
[418992157,1774716635286,-157.54647677,0.00019497,2]
[418992159,1774716635296,-500.0,0.00019497,2]
[418992161,1774716635306,-500.0,0.00019497,2]
[418992163,1774716635315,-500.0,0.00019497,2]
[418992165,1774716635325,-500.0,0.00019497,2]
[418992167,1774716635334,-500.0,0.00019497,2]
[418992169,1774716635344,-500.0,0.00019497,2]
[418992171,1774716635352,-500.0,0.00019497,2]
[418992173,1774716635362,-500.0,0.00019497,2]
[418992175,1774716635371,-500.0,0.00019497,2]
[418992177,1774716635380,-500.0,0.00019497,2]
[418992179,1774716635390,-500.0,0.00019497,2]
[418992181,1774716635399,-500.0,0.00019497,2]
[418992183,1774716635408,-500.0,0.00019497,2]
[418992185,1774716635417,-500.0,0.00019497,2]
[418992187,1774716635426,-500.0,0.00019497,2]
[418992189,1774716635435,-500.0,0.00019497,2]
[418992190,1774716635444,-500.0,0.00019497,2]
[418992192,1774716635453,-500.0,0.00019497,2]
[418992194,1774716635462,-500.0,0.00019497,2]
[418992196,1774716635471,-500.0,0.00019497,2]
[418992198,1774716635481,-500.0,0.00019497,2]
[418992200,1774716635490,-500.0,0.00019497,2]
[418992202,1774716635499,-500.0,0.00019497,2]
[418992204,1774716635509,-393.49486496,0.00019497,2]
[418992206,1774716635518,-500.0,0.00019497,2]
[418992208,1774716635527,-500.0,0.00019497,2]
[418992209,1774716635536,-500.0,0.00019497,2]
[418992210,1774716635546,-500.0,0.00019497,2]
[418992212,1774716635556,-500.0,0.00019497,2]
[418992214,1774716635565,-500.0,0.00019497,2]
[418992216,1774716635575,-500.0,0.00019497,2]
[418992218,1774716635584,-500.0,0.00019497,2]
[418992220,1774716635594,-500.0,0.00019497,2]
[418992222,1774716635603,-500.0,0.00019497,2]
[418992224,1774716635613,-500.0,0.00019497,2]
[418992226,1774716635623,-500.0,0.00019497,2]
[418992228,1774716635632,-500.0,0.00019497,2]
[418992230,1774716635642,-500.0,0.00019497,2]
[418992232,1774716635651,-500.0,0.00019497,2]
[418992234,1774716635661,-625.0,0.00019497,2]
[418992236,1774716635671,-212.03366308,0.00019497,2]
[418992238,1774716635680,-500.0,0.00019497,2]
[418992240,1774716635690,-500.0,0.00019497,2]
[418992242,1774716635699,-500.0,0.00019497,2]
[418992244,1774716635709,-500.0,0.00019497,2]
[418992246,1774716635718,-500.0,0.00019497,2]
[418992248,1774716635728,-500.0,0.00019497,2]
[418992251,1774716635746,-500.0,0.00019497,2]
[418992253,1774716635758,-500.0,0.00019497,2]
[418992255,1774716635768,-500.0,0.00019497,2]
[418992257,1774716635778,-500.0,0.00019497,2]
[418992259,1774716635788,-500.0,0.00019497,2]
[418992261,1774716635798,-500.0,0.00019497,2]
[418992263,1774716635807,-500.0,0.00019497,2]
[418992265,1774716635818,-500.0,0.00019497,2]
[418992268,1774716635828,-500.0,0.00019497,2]
[418992270,1774716635838,-500.0,0.00019497,2]
[418992272,1774716635848,-500.0,0.00019497,2]
[418992274,1774716635858,-500.0,0.00019497,2]
[418992276,1774716635867,-500.0,0.00019497,2]
[418992278,1774716635877,-500.0,0.00019497,2]
[418992280,1774716635887,-500.0,0.00019497,2]
[418992282,1774716635896,-500.0,0.00019497,2]
[418992284,1774716635906,-500.0,0.00019497,2]
[418992286,1774716635916,-300.0,0.00019497,2]
[418992288,1774716635926,-31207.3895548,0.00019498,2]
[418992291,1774716635941,-665.05,0.00019498,2]
[418992353,1774716638205,-500.0,0.00019497,2]
[418992354,1774716638214,-74376.39885942,0.00019498,2]
[418992355,1774716638226,-31542.74436907,0.00019498,2]
[418992368,1774716640819,-13390.3,0.00019498,2]
[418992392,1774716644047,-56215.70281955,0.00019498,2]
[418992410,1774716646248,-8026.83732293,0.00019498,2]
[418992411,1774716646543,-1082.59443861,0.00019498,2]
[418992412,1774716646555,-3045.37487316,0.00019498,2]
[418992519,1774717832078,-2500.0,7.6e-05,2]
[418992520,1774717832135,-3228.84762996,7.6e-05,2]
[418992553,1774717838255,-1333.44449008,7.6e-05,2]
[418992554,1774717838264,-527.0,7.6e-05,2]
[418992555,1774717838274,-300.0,7.751e-05,2]
[418992556,1774717838283,-300.0,7.751e-05,2]
[418992557,1774717838292,-300.0,7.751e-05,2]
[418992558,1774717838302,-300.0,7.751e-05,2]
[418992559,1774717838311,-300.0,7.751e-05,2]
[418992560,1774717838320,-300.0,7.751e-05,2]
[418992561,1774717838330,-300.0,7.751e-05,2]
[418992562,1774717838339,-300.0,7.751e-05,2]
[418992563,1774717838348,-300.0,7.751e-05,2]
[418992564,1774717838357,-300.0,7.751e-05,2]
[418992565,1774717838366,-300.0,7.751e-05,2]
[418992566,1774717838375,-300.0,7.751e-05,2]
[418992567,1774717838384,-300.0,7.751e-05,2]
[418992568,1774717838394,-300.0,7.751e-05,2]
[418992569,1774717838403,-91.37523768,7.751e-05,2]
[418992570,1774717838415,-208.62476232,7.751e-05,2]
[418992571,1774717838424,-600.0,7.905e-05,2]
[418992572,1774717838433,-720.0,8.696e-05,2]
[418992573,1774717838442,-12510.64965681,9e-05,2]
[418992575,1774717841019,-576.91260582,9e-05,2]
[418992576,1774717841028,-542.42740907,9.565e-05,2]
[418992639,1774717843796,-321.57259093,9.565e-05,2]
[418992641,1774717843806,-1000.0,0.00010522,2]
[418992643,1774717843816,-1000.0,0.00011574,2]
[418992645,1774717843825,-244.0,0.00011574,2]
[418992647,1774717843834,-377.82985071,0.00012731,2]
[418992649,1774717843846,-622.17014929,0.00012731,2]
[418992653,1774717843856,-492.0,0.00012731,2]
[418992656,1774717843865,-2645.35676006,0.00013292,2]
[418992700,1774717846259,-2354.64323994,0.00013292,2]
[418992701,1774717846269,-300.0,0.00013693,2]
[418992702,1774717846278,-300.0,0.00013693,2]
[418992703,1774717846287,-300.0,0.00013693,2]
[418992704,1774717846296,-1000.0,0.00013699,2]
[418992705,1774717846307,-1000.0,0.00014004,2]
[418992706,1774717846316,-791.0,0.00014004,2]
[418992707,1774717846326,-1007.70825032,0.00015,7]
[418992708,1774717846336,-1000.0,0.00015405,2]
[418992709,1774717846346,-1000.0,0.00015405,2]
[418992710,1774717846355,-500.0,0.00016299,2]
[418992711,1774717846365,-500.0,0.00016299,2]
[418992712,1774717846374,-500.0,0.00016299,2]
[418992713,1774717846383,-500.0,0.00016299,2]
[418992714,1774717846392,-500.0,0.00016299,2]
[418992715,1774717846401,-500.0,0.00016299,2]
[418992716,1774717846411,-500.0,0.00016299,2]
[418992717,1774717846420,-500.0,0.00016299,2]
[418992718,1774717846428,-451.81445729,0.00016299,2]
[418992719,1774717846437,-500.0,0.00016299,2]
[418992720,1774717846447,-500.0,0.00016299,2]
[418992721,1774717846456,-384.3494865,0.00016299,2]
[418992722,1774717846464,-637.5,0.00016299,2]
[418992723,1774717846473,-3846.85836654,0.000163,120]
[418992724,1774717846485,-14970.90944582,0.000163,120]
[418992725,1774717846507,-12227.08932924,0.000163,120]
[418992726,1774717846516,-325.51910727,0.00016854,2]
[418992727,1774717846526,-371.64981505,0.00016854,2]
[418992728,1774717846536,-1000.0,0.00016945,2]
[418992729,1774717846546,-1000.0,0.00016945,2]
[418992730,1774717846556,-253.0,0.00016945,2]
[418992731,1774717846566,-407.50348394,0.0001723,2]
[418992732,1774717846575,-724.45063812,0.0001723,2]
[418992733,1774717846584,-1660.4906741,0.00017741,2]
[418992734,1774717846593,-436.91098691,0.00018675,2]
[418992735,1774717846602,-786.43977644,0.00018675,2]
[418992736,1774717846612,-1978.84034778,0.00019073,2]
[418992737,1774717846621,-2632.36878365,0.00019102,2]
[418992738,1774717846633,-500.0,0.00019102,2]
[418992739,1774717846642,-500.0,0.00019102,2]
[418992740,1774717846651,-471.88917955,0.00019102,2]
[418992742,1774717846661,-494.6761489,0.00019102,2]
[418992744,1774717846671,-462765.35620924,0.00019103,2]
[418992801,1774719032479,-302.99774103,7.6e-05,4]
[418992803,1774719032489,-4240.55941701,0.00013027,2]
[418992809,1774719032532,-759.44058299,0.00013027,2]
[418992811,1774719032542,-607.0,0.00013159,2]
[418992813,1774719032551,-1000.0,0.00013699,2]
[418992815,1774719032560,-300.0,0.00013832,2]
[418992817,1774719032570,-300.0,0.00013832,2]
[418992819,1774719032579,-300.0,0.00013832,2]
[418992820,1774719032588,-300.0,0.00013832,2]
[418992822,1774719032598,-300.0,0.00013832,2]
[418992824,1774719032607,-300.0,0.00013832,2]
[418992826,1774719032616,-300.0,0.00013832,2]
[418992827,1774719032626,-300.0,0.00013832,2]
[418992828,1774719032637,-300.0,0.00013832,2]
[418992829,1774719032647,-300.0,0.00013832,2]
[418992831,1774719032657,-300.0,0.00013832,2]
[418992833,1774719032666,-300.0,0.00013832,2]
[418992834,1774719032676,-300.0,0.00013832,2]
[418992835,1774719032687,-300.0,0.00013832,2]
[418992836,1774719032698,-300.0,0.00013832,2]
[418992837,1774719032708,-600.0,0.00014108,2]
[418992838,1774719032717,-403.59312757,0.00015518,2]
[418992839,1774719032729,-316.40687243,0.00015518,2]
[418992840,1774719032740,-372.40040668,0.00016011,2]
[418992841,1774719032749,-670.32073203,0.00016011,2]
[418992842,1774719032759,-500.0,0.000167,2]
[418992843,1774719032768,-296.52514322,0.00016823,2]
[418992844,1774719032777,-1191.68130139,0.00016858,2]
[418992845,1774719032787,-864.0,0.0001707,2]
[418992846,1774719032796,-1398.11515812,0.00017095,2]
[418992847,1774719032805,-431.2753209,0.00017248,2]
[418992848,1774719032815,-661.86218487,0.00017708,2]
[418992849,1774719032824,-324.4445453,0.00017869,2]
[418992850,1774719032833,-370.79376606,0.00017869,2]
[418992851,1774719032842,-1000.0,0.00017977,2]
[418992852,1774719032852,-220.822,0.00017995,2]
[418992853,1774719032861,-52984.02527196,0.00018333,2]
[418992854,1774719032870,-156.20769032,0.00018344,2]
[418992855,1774719032879,-231.70460049,0.00018344,2]
[418992856,1774719032888,-220.19484046,0.00018344,2]
[418992857,1774719032899,-185.88393048,0.00018344,2]
[418992858,1774719032908,-500.0,0.00018517,2]
[418992859,1774719032918,-500.0,0.00018517,2]
[418992860,1774719032927,-500.0,0.00018517,2]
[418992861,1774719032936,-500.0,0.00018517,2]
[418992862,1774719032945,-500.0,0.00018517,2]
[418992863,1774719032954,-530.18144573,0.00018517,2]
[418992864,1774719032965,-237.5,0.00018517,2]
[418992865,1774719032974,-104.54239681,0.00018517,2]
[418992866,1774719032986,-369.01215956,0.00018517,2]
[418992879,1774719038515,-26.44544363,0.00018517,2]
[418992880,1774719038524,-483.4371294,0.00018517,2]
[418992881,1774719038535,-51069.2911616,0.00018518,2]
[418992882,1774719038546,-1274.3561377,0.00018518,2]
[418992883,1774719038622,-46588.51305982,0.00018518,2]
[418992884,1774719038633,-1465.00951315,0.00018518,2]